fUST/lending_fUST_20250308
["ID","MTS","AMOUNT","RATE_DAILY","PERIOD"]
[355653721,1741439433188,-500.0,0.00048613,92]
[355653722,1741439433199,-200.0,0.00048657,120]
[355653723,1741439433209,-416.66666667,0.00048665,2]
[355653724,1741439433218,-500.0,0.00048679,2]
[355653725,1741439433228,-500.0,0.00048679,2]
[355653726,1741439433239,-500.0,0.00048679,2]
[355653727,1741439433249,-500.0,0.00048679,2]
[355653728,1741439433258,-500.0,0.00048679,2]
[355653729,1741439433267,-500.0,0.00048679,2]
[355653730,1741439433277,-500.0,0.00048679,2]
[355653731,1741439433287,-500.0,0.00048679,2]
[355653732,1741439433297,-500.0,0.00048679,2]
[355653733,1741439433307,-500.0,0.00048679,2]
[355653734,1741439433317,-500.0,0.00048679,2]
[355653735,1741439433326,-500.0,0.00048679,2]
[355653736,1741439433336,-500.0,0.00048679,2]
[355653737,1741439433346,-500.0,0.00048679,2]
[355653738,1741439433355,-639.48404301,0.00048679,2]
[355653739,1741439433365,-500.0,0.00048679,2]
[355653740,1741439433375,-500.0,0.00048679,2]
[355653741,1741439433385,-1516.39,0.0004868,120]
[355653742,1741439433395,-224.78,0.00048699,30]
[355653743,1741439433405,-3000.0,0.000487,2]
[355653744,1741439433415,-500.0,0.00048713,96]
[355653745,1741439433425,-156.0,0.000488,120]
[355653746,1741439433435,-500.0,0.00048813,95]
[355653747,1741439433446,-19582.47392,0.00048899,4]
[355653748,1741439433457,-12383.44256302,0.000489,120]
[355653749,1741439433467,-500.0,0.00048913,93]
[355653750,1741439433477,-508.39307774,0.00048973,10]
[355653751,1741439433487,-500.0,0.00048973,10]
[355653752,1741439433497,-500.0,0.00048973,10]
[355653753,1741439433507,-500.0,0.00048973,10]
[355653754,1741439433517,-504.6639262,0.00048973,10]
[355653755,1741439433527,-500.0,0.00048973,10]
[355653756,1741439433537,-500.0,0.00048973,10]
[355653757,1741439433547,-500.0,0.00048973,10]
[355653758,1741439433557,-500.0,0.00048973,10]
[355653759,1741439433567,-500.0,0.00048973,10]
[355653760,1741439433576,-500.0,0.00048973,10]
[355653761,1741439433586,-417.97348351,0.00048973,10]
[355653762,1741439433596,-500.0,0.00048973,10]
[355653763,1741439433606,-503.13758744,0.00048973,10]
[355653764,1741439433615,-794.91,0.0004898,30]
[355653765,1741439433625,-42015.9207795,0.0004899,4]
[355653766,1741439433635,-2500.0,0.00049,120]
[355653767,1741439433645,-150.07165339,0.00049,120]
[355653768,1741439433656,-1000.0,0.00049,30]
[355653769,1741439433665,-1798.0,0.00049,120]
[355653770,1741439433676,-2464.30891453,0.00049,30]
[355653771,1741439433685,-1000.0,0.00049,2]
[355653772,1741439433695,-551.0,0.00049,2]
[355653773,1741439433705,-516.15911504,0.00049,30]
[355653774,1741439433715,-1000.0,0.00049,2]
[355653775,1741439433725,-47493.74029994,0.00049,30]
[355653776,1741439433735,-47493.74029994,0.00049,30]
[355653777,1741439433745,-5000.0,0.00049,15]
[355653778,1741439433755,-500.0,0.00049013,99]
[355653779,1741439433765,-500.0,0.00049113,100]
[355653780,1741439433775,-800.0,0.00049151,14]
[355653781,1741439433786,-7037.99941886,0.00049159,120]
[355653782,1741439433795,-2464.30891453,0.0004916,30]
[355653783,1741439433805,-516.15911504,0.0004916,30]
[355653784,1741439433816,-600.0,0.00049186,2]
[355653785,1741439433830,-5881.67600651,0.00049195,4]
[355653805,1741439438608,-250.22209,0.000432,120]
[355653807,1741439438618,-334.16,0.0004499,10]
[355653808,1741439438628,-15000.0,0.00049,15]
[355653809,1741439438639,-423.3448319,0.00049184,14]
[355653810,1741439438648,-8123.63091999,0.00049195,4]
[355653811,1741439438658,-70026.5346324,0.00049205,4]
[355653812,1741439438668,-55555.0,0.00049205,120]
[355653813,1741439438678,-175.75025747,0.00049213,2]
[355653814,1741439438688,-500.0,0.00049213,93]
[355653815,1741439438697,-2000.0,0.00049215,31]
[355653816,1741439438706,-222000.0,0.00049215,2]
[355653817,1741439438715,-800.0,0.00049225,14]
[355653818,1741439438726,-500.0,0.00049273,10]
[355653819,1741439438735,-521.00590337,0.00049273,2]
[355653820,1741439438746,-500.0,0.00049273,10]
[355653821,1741439438756,-1295.176433,0.0004928,21]
[355653822,1741439438765,-14005.3069265,0.0004929,4]
[355653823,1741439438775,-1275.85329109,0.00049293,28]
[355653824,1741439438784,-800.0,0.00049297,14]
[355653825,1741439438793,-30091.07,0.000493,120]
[355653826,1741439438803,-1000.0,0.000493,21]
[355653827,1741439438812,-500.095823,0.000493,114]
[355653828,1741439438825,-84031.8415589,0.00049305,4]
[355653829,1741439438835,-500.0,0.00049313,95]
[355653830,1741439438844,-2000.0,0.00049315,41]
[355653831,1741439438853,-285.78188656,0.00049315,2]
[355653832,1741439438865,-500.0,0.00049315,120]
[355653833,1741439438875,-500.0,0.00049315,120]
[355653834,1741439438884,-500.0,0.00049315,120]
[355653835,1741439438894,-500.0,0.00049315,120]
[355653836,1741439438904,-500.0,0.00049315,120]
[355653837,1741439438914,-506.72108897,0.00049315,120]
[355653838,1741439438924,-500.0,0.00049315,120]
[355653839,1741439438933,-500.0,0.00049315,120]
[355653840,1741439438943,-515.69000512,0.00049315,120]
[355653841,1741439438952,-509.69120795,0.00049315,120]
[355653842,1741439438962,-587.87,0.00049315,120]
[355653843,1741439438971,-500.0,0.00049315,120]
[355653844,1741439438981,-500.0,0.00049315,120]
[355653845,1741439438991,-500.0,0.00049315,120]
[355653846,1741439439000,-541.59856954,0.00049315,120]
[355653847,1741439439010,-500.0,0.00049315,120]
[355653848,1741439439019,-500.0,0.00049315,120]
[355653849,1741439439029,-500.0,0.00049315,120]
[355653850,1741439439038,-500.0,0.00049315,120]
[355653851,1741439439047,-685.84,0.00049315,120]
[355653852,1741439439154,-500.0,0.00049315,120]
[355653853,1741439439164,-500.0,0.00049315,120]
[355653854,1741439439174,-500.0,0.00049315,120]
[355653855,1741439439184,-500.0,0.00049315,2]
[355653856,1741439439195,-500.0,0.00049315,120]
[355653857,1741439439204,-4020.97,0.00049315,120]
[355653858,1741439439214,-500.0,0.00049315,120]
[355653859,1741439439223,-801.55,0.00049315,120]
[355653860,1741439439233,-500.0,0.00049315,120]
[355653861,1741439439244,-510.39131851,0.00049315,120]
[355653862,1741439439253,-500.0,0.00049315,120]
[355653863,1741439439263,-554.21590053,0.00049315,120]
[355653864,1741439439272,-800.13,0.00049315,120]
[355653865,1741439439283,-500.0,0.00049315,120]
[355653866,1741439439297,-789.14,0.00049315,120]
[355653867,1741439439307,-500.0,0.00049315,120]
[355653868,1741439439318,-500.0,0.00049315,120]
[355653869,1741439439327,-520.18476513,0.00049315,120]
[355653870,1741439439337,-322.06144267,0.00049315,5]
[355653871,1741439439346,-535.74191994,0.00049315,120]
[355653872,1741439439356,-500.0,0.00049315,120]
[355653873,1741439439366,-500.0,0.00049315,120]
[355653874,1741439439376,-879.37,0.00049315,120]
[355653875,1741439439386,-879.37,0.00049315,120]
[355653876,1741439439395,-879.37,0.00049315,120]
[355653877,1741439439405,-879.37,0.00049315,120]
[355653878,1741439439415,-879.37,0.00049315,120]
[355653879,1741439439424,-879.37,0.00049315,120]
[355653880,1741439439434,-879.37,0.00049315,120]
[355653881,1741439439444,-879.37,0.00049315,120]
[355653882,1741439439453,-879.37,0.00049315,120]
[355653883,1741439439463,-879.37,0.00049315,120]
[355653884,1741439439472,-533.54438792,0.00049315,120]
[355653885,1741439439481,-879.37,0.00049315,120]
[355653886,1741439439491,-879.37,0.00049315,120]
[355653887,1741439439500,-879.37,0.00049315,120]
[355653888,1741439439510,-879.37,0.00049315,120]
[355653889,1741439439520,-879.37,0.00049315,120]
[355653890,1741439439529,-879.37,0.00049315,120]
[355653891,1741439439539,-879.37,0.00049315,120]
[355653892,1741439439549,-879.37,0.00049315,120]
[355653893,1741439439558,-879.37,0.00049315,120]
[355653894,1741439439567,-879.37,0.00049315,120]
[355653895,1741439439576,-879.37,0.00049315,120]
[355653896,1741439439586,-879.37,0.00049315,120]
[355653897,1741439439596,-879.37,0.00049315,120]
[355653898,1741439439605,-500.0,0.00049315,120]
[355653899,1741439439615,-879.38935448,0.00049315,120]
[355653900,1741439439625,-500.0,0.00049315,120]
[355653901,1741439439635,-500.0,0.00049315,120]
[355653902,1741439439644,-500.0,0.00049315,120]
[355653903,1741439439654,-564.24398665,0.00049315,120]
[355653904,1741439439664,-530.95530588,0.00049315,120]
[355653905,1741439439673,-500.0,0.00049315,120]
[355653906,1741439439683,-333.0737851,0.00049315,120]
[355653907,1741439439692,-500.0,0.00049315,120]
[355653908,1741439439702,-500.0,0.00049315,120]
[355653909,1741439439711,-500.0,0.00049315,120]
[355653910,1741439439721,-3256.79,0.00049315,120]
[355653911,1741439439730,-393.42681778,0.00049315,120]
[355653912,1741439439740,-1202.25,0.00049315,120]
[355653913,1741439439750,-500.0,0.00049315,120]
[355653914,1741439439760,-500.0,0.00049315,120]
[355653915,1741439439770,-500.0,0.00049315,120]
[355653916,1741439439779,-500.0,0.00049315,120]
[355653917,1741439439790,-500.0,0.00049315,120]
[355653918,1741439439799,-598.79,0.00049315,120]
[355653919,1741439439809,-500.0,0.00049315,120]
[355653920,1741439439819,-500.0,0.00049315,120]
[355653921,1741439439834,-537.12330089,0.00049315,120]
[355653922,1741439439843,-586.67551706,0.00049315,120]
[355653923,1741439439853,-517.52283314,0.00049315,120]
[355653924,1741439439862,-500.0,0.00049315,120]
[355653925,1741439439873,-500.0,0.00049315,120]
[355653926,1741439439883,-314.50886071,0.00049315,120]
[355653927,1741439439893,-500.0,0.00049315,120]
[355653928,1741439439904,-1641.94,0.00049315,120]
[355653929,1741439439914,-1641.94,0.00049315,120]
[355653930,1741439439924,-1641.94,0.00049315,120]
[355653931,1741439439934,-1641.94,0.00049315,120]
[355653932,1741439439944,-1641.94,0.00049315,120]
[355653933,1741439439954,-1641.94,0.00049315,120]
[355653934,1741439439964,-1641.94,0.00049315,120]
[355653935,1741439439974,-1641.94,0.00049315,120]
[355653936,1741439439984,-1641.94,0.00049315,120]
[355653937,1741439440000,-1641.94,0.00049315,120]
[355653938,1741439440010,-1641.94,0.00049315,120]
[355653939,1741439440020,-1641.94,0.00049315,120]
[355653940,1741439440030,-1641.94,0.00049315,120]
[355653941,1741439440040,-1641.94,0.00049315,120]
[355653942,1741439440051,-1641.94,0.00049315,120]
[355653943,1741439440061,-1641.94,0.00049315,120]
[355653944,1741439440071,-1641.94,0.00049315,120]
[355653945,1741439440081,-1641.94,0.00049315,120]
[355653946,1741439440090,-1641.94,0.00049315,120]
[355653947,1741439440100,-1641.94,0.00049315,120]
[355653948,1741439440110,-1641.94,0.00049315,120]
[355653949,1741439440119,-1641.94,0.00049315,120]
[355653950,1741439440129,-1641.94,0.00049315,120]
[355653951,1741439440139,-1642.04832079,0.00049315,120]
[355653952,1741439440148,-301.5011335,0.00049315,120]
[355653953,1741439440158,-500.0,0.00049315,120]
[355653955,1741439440168,-500.0,0.00049315,120]
[355653957,1741439440177,-500.0,0.00049315,120]
[355653959,1741439440187,-500.0,0.00049315,120]
[355653961,1741439440196,-222.827466,0.00049315,120]
[355653963,1741439440206,-541.04,0.00049315,120]
[355653964,1741439440215,-500.0,0.00049315,120]
[355653966,1741439440224,-500.0,0.00049315,120]
[355653969,1741439440235,-235.2246693,0.00049315,120]
[355653971,1741439440247,-1274.84,0.00049315,120]
[355653972,1741439440257,-1274.84,0.00049315,120]
[355653974,1741439440266,-1274.84,0.00049315,120]
[355653976,1741439440276,-1274.84,0.00049315,120]
[355653978,1741439440286,-1274.84,0.00049315,120]
[355653981,1741439440295,-1274.84,0.00049315,120]
[355653984,1741439440305,-1274.84,0.00049315,120]
[355653986,1741439440315,-1274.84,0.00049315,120]
[355653988,1741439440324,-1274.84,0.00049315,120]
[355653990,1741439440334,-1274.84,0.00049315,120]
[355653992,1741439440344,-500.0,0.00049315,120]
[355653994,1741439440353,-1274.84,0.00049315,120]
[355653996,1741439440363,-1274.84,0.00049315,120]
[355653998,1741439440373,-1274.84,0.00049315,120]
[355654001,1741439440383,-500.0,0.00049315,120]
[355654003,1741439440392,-1274.84,0.00049315,120]
[355654005,1741439440402,-1274.84,0.00049315,120]
[355654007,1741439440411,-500.0,0.00049315,120]
[355654009,1741439440421,-1274.84,0.00049315,120]
[355654011,1741439440430,-1274.84,0.00049315,120]
[355654013,1741439440439,-1274.84,0.00049315,120]
[355654015,1741439440449,-1274.84,0.00049315,120]
[355654017,1741439440459,-1274.84,0.00049315,120]
[355654019,1741439440468,-1274.84,0.00049315,120]
[355654021,1741439440478,-1274.84,0.00049315,120]
[355654023,1741439440487,-1274.84,0.00049315,120]
[355654025,1741439440499,-1275.04806614,0.00049315,120]
[355654027,1741439440509,-450.83335965,0.00049315,120]
[355654030,1741439440518,-4197.06,0.00049315,2]
[355654033,1741439440527,-500.0,0.00049315,5]
[355654035,1741439440537,-626.56,0.00049315,120]
[355654037,1741439440546,-516.93947988,0.00049315,120]
[355654038,1741439440556,-508.30711993,0.00049315,120]
[355654039,1741439440565,-554.46131479,0.00049315,120]
[355654041,1741439440575,-559.38050881,0.00049315,120]
[355654043,1741439440585,-412.19156865,0.00049315,120]
[355654044,1741439440594,-500.0,0.00049315,120]
[355654047,1741439440604,-5575.6,0.00049315,120]
[355654049,1741439440613,-2961.36,0.00049315,120]
[355654050,1741439440622,-500.0,0.00049315,120]
[355654052,1741439440632,-500.0,0.00049315,120]
[355654054,1741439440642,-512.01335314,0.00049315,120]
[355654057,1741439440651,-519.9983833,0.00049315,120]
[355654059,1741439440662,-500.0,0.00049315,120]
[355654061,1741439440671,-392.57812239,0.00049315,120]
[355654063,1741439440681,-500.0,0.00049315,120]
[355654065,1741439440691,-630.27,0.00049315,120]
[355654066,1741439440700,-521.51708385,0.00049315,120]
[355654068,1741439440710,-513.97387247,0.00049315,120]
[355654069,1741439440719,-647.04,0.00049315,120]
[355654070,1741439440728,-511.00117257,0.00049315,120]
[355654071,1741439440738,-500.0,0.00049315,120]
[355654072,1741439440749,-416.66666667,0.00049315,7]
[355654073,1741439440759,-14095.48,0.00049315,120]
[355654074,1741439440768,-500.0,0.00049315,120]
[355654075,1741439440778,-522.33387125,0.00049315,120]
[355654076,1741439440788,-500.0,0.00049315,120]
[355654077,1741439440798,-500.0,0.00049315,120]
[355654078,1741439440807,-300.89219109,0.00049315,120]
[355654079,1741439440818,-513.85294894,0.00049315,120]
[355654080,1741439440830,-833.51,0.00049315,120]
[355654081,1741439440840,-833.51,0.00049315,120]
[355654082,1741439440850,-833.51,0.00049315,120]
[355654083,1741439440861,-833.51,0.00049315,120]
[355654084,1741439440870,-833.51,0.00049315,120]
[355654085,1741439440880,-508.16543719,0.00049315,120]
[355654086,1741439440889,-833.51,0.00049315,120]
[355654087,1741439440899,-833.51,0.00049315,120]
[355654088,1741439440910,-833.51,0.00049315,120]
[355654089,1741439440919,-833.51,0.00049315,120]
[355654090,1741439440929,-275.15223931,0.00049315,120]
[355654091,1741439440938,-833.51,0.00049315,120]
[355654092,1741439440948,-833.51,0.00049315,120]
[355654093,1741439440957,-833.51,0.00049315,120]
[355654094,1741439440967,-508.9447773,0.00049315,120]
[355654095,1741439440976,-833.51,0.00049315,120]
[355654096,1741439440986,-833.51,0.00049315,120]
[355654097,1741439440996,-833.51,0.00049315,120]
[355654098,1741439441005,-833.51,0.00049315,120]
[355654099,1741439441015,-833.51,0.00049315,120]
[355654100,1741439441024,-833.51,0.00049315,120]
[355654101,1741439441034,-833.51,0.00049315,120]
[355654102,1741439441043,-833.51,0.00049315,120]
[355654103,1741439441052,-833.51,0.00049315,120]
[355654104,1741439441062,-833.51,0.00049315,120]
[355654105,1741439441071,-833.51,0.00049315,120]
[355654106,1741439441081,-833.69297275,0.00049315,120]
[355654107,1741439441090,-1044.81,0.00049315,120]
[355654108,1741439441100,-7548.14,0.00049315,7]
[355654109,1741439441110,-509.20289645,0.00049315,120]
[355654110,1741439441119,-505.63254439,0.00049315,120]
[355654111,1741439441129,-513.39043369,0.00049315,120]
[355654112,1741439441138,-2140.13,0.00049315,120]
[355654113,1741439441148,-500.0,0.00049315,120]
[355654114,1741439441157,-500.0,0.00049315,120]
[355654115,1741439441167,-504.18756698,0.00049315,120]
[355654116,1741439441176,-1000.0,0.00049315,7]
[355654117,1741439441185,-507.00040383,0.00049315,120]
[355654118,1741439441195,-1289.56,0.00049315,120]
[355654119,1741439441205,-503.66914482,0.00049315,120]
[355654120,1741439441217,-500.0,0.00049315,120]
[355654121,1741439441227,-540.80990144,0.00049315,120]
[355654122,1741439441236,-500.0,0.00049315,120]
[355654123,1741439441245,-544.65757719,0.00049315,120]
[355654124,1741439441254,-512.94923013,0.00049315,120]
[355654125,1741439441263,-516.22538291,0.00049315,120]
[355654126,1741439441273,-2132.79,0.00049315,120]
[355654127,1741439441282,-511.56863627,0.00049315,120]
[355654128,1741439441292,-500.0,0.00049315,30]
[355654129,1741439441302,-500.0,0.00049315,120]
[355654130,1741439441311,-503.67997924,0.00049315,120]
[355654131,1741439441322,-166.38058596,0.00049315,120]
[355654132,1741439441414,-500.0,0.00049315,120]
[355654133,1741439441424,-500.0,0.00049315,120]
[355654134,1741439441433,-427.88302104,0.00049315,120]
[355654135,1741439441443,-360.51069541,0.00049315,120]
[355654136,1741439441453,-500.0,0.00049315,120]
[355654137,1741439441462,-529.13705929,0.00049315,120]
[355654138,1741439441472,-500.0,0.00049315,120]
[355654139,1741439441481,-515.09519555,0.00049315,120]
[355654140,1741439441492,-163.72414308,0.00049315,120]
[355654141,1741439441501,-513.2813966,0.00049315,120]
[355654142,1741439441511,-523.73678083,0.00049315,120]
[355654143,1741439441520,-500.0,0.00049315,120]
[355654144,1741439441530,-526.91539129,0.00049315,120]
[355654145,1741439441539,-500.0,0.00049315,120]
[355654146,1741439441548,-503.66127661,0.00049315,120]
[355654147,1741439441558,-508.69331106,0.00049315,120]
[355654148,1741439441567,-500.0,0.00049315,120]
[355654149,1741439441577,-500.0,0.00049315,120]
[355654150,1741439441587,-176.88367046,0.00049315,120]
[355654151,1741439441596,-515.82755753,0.00049315,120]
[355654152,1741439441606,-519.53629376,0.00049315,120]
[355654153,1741439441615,-166.02734645,0.00049315,120]
[355654154,1741439441625,-512.96205649,0.00049315,120]
[355654155,1741439441634,-500.0,0.00049315,120]
[355654156,1741439441644,-500.0,0.00049315,2]
[355654157,1741439441654,-534.26905312,0.00049315,120]
[355654158,1741439441663,-500.0,0.00049315,120]
[355654159,1741439441673,-505.97119795,0.00049315,120]
[355654160,1741439441683,-500.0,0.00049315,120]
[355654161,1741439441692,-529.13909038,0.00049315,120]
[355654162,1741439441702,-508.94887327,0.00049315,120]
[355654163,1741439441711,-180.14888899,0.00049315,120]
[355654164,1741439441721,-500.0,0.00049315,120]
[355654165,1741439441731,-307.19046025,0.00049315,120]
[355654166,1741439441740,-500.0,0.00049315,120]
[355654167,1741439441750,-526.9089251,0.00049315,120]
[355654168,1741439441759,-500.0,0.00049315,120]
[355654169,1741439441769,-521.16974938,0.00049315,120]
[355654170,1741439441778,-500.0,0.00049315,120]
[355654171,1741439441787,-506.81447175,0.00049315,120]
[355654172,1741439441797,-500.0,0.00049315,120]
[355654173,1741439441807,-500.0,0.00049315,120]
[355654174,1741439441817,-500.0,0.00049315,120]
[355654175,1741439441829,-505.38054331,0.00049315,120]
[355654176,1741439441838,-840.48,0.00049315,120]
[355654177,1741439441848,-840.48,0.00049315,120]
[355654178,1741439441858,-840.48,0.00049315,120]
[355654179,1741439441867,-840.48,0.00049315,120]
[355654180,1741439441878,-511.95814668,0.00049315,120]
[355654181,1741439441888,-840.48,0.00049315,120]
[355654182,1741439441897,-840.48,0.00049315,120]
[355654183,1741439441907,-840.48,0.00049315,120]
[355654184,1741439441916,-840.48,0.00049315,120]
[355654185,1741439441926,-840.48,0.00049315,120]
[355654186,1741439441935,-840.48,0.00049315,120]
[355654187,1741439441944,-840.48,0.00049315,120]
[355654188,1741439441954,-840.48,0.00049315,120]
[355654189,1741439441963,-840.48,0.00049315,120]
[355654190,1741439441973,-840.48,0.00049315,120]
[355654191,1741439441983,-840.48,0.00049315,120]
[355654192,1741439441993,-840.48,0.00049315,120]
[355654193,1741439442003,-840.48,0.00049315,120]
[355654194,1741439442012,-840.48,0.00049315,120]
[355654195,1741439442022,-840.48,0.00049315,120]
[355654196,1741439442032,-840.48,0.00049315,120]
[355654198,1741439442041,-840.48,0.00049315,120]
[355654200,1741439442051,-840.48,0.00049315,120]
[355654201,1741439442060,-840.48,0.00049315,120]
[355654202,1741439442069,-840.6047707,0.00049315,120]
[355654203,1741439442079,-701.11,0.00049315,120]
[355654204,1741439442088,-500.0,0.00049315,120]
[355654205,1741439442098,-500.97679274,0.00049315,2]
[355654206,1741439442107,-536.4954443,0.00049315,120]
[355654207,1741439442117,-542.81784306,0.00049315,120]
[355654208,1741439442126,-521.6795734,0.00049315,120]
[355654209,1741439442135,-9999.0,0.00049315,2]
[355654210,1741439442145,-500.0,0.00049315,2]
[355654211,1741439442155,-360.60368396,0.00049315,120]
[355654212,1741439442164,-500.0,0.00049315,120]
[355654213,1741439442173,-500.0,0.00049315,120]
[355654214,1741439442183,-500.0,0.00049315,120]
[355654215,1741439442193,-425.26701115,0.00049315,2]
[355654216,1741439442203,-515.91275467,0.00049315,120]
[355654217,1741439442213,-833.33,0.00049315,2]
[355654218,1741439442223,-200.11684612,0.00049315,10]
[355654219,1741439442233,-1000.0,0.0004932,21]
[355654220,1741439442242,-800.0,0.00049324,30]
[355654221,1741439442253,-2000.0,0.0004933,45]
[355654222,1741439442263,-800.0,0.00049331,30]
[355654223,1741439442272,-10151.66995057,0.0004934,61]
[355654224,1741439442282,-572.21444266,0.0004934,61]
[355654225,1741439442291,-15256.88087836,0.0004934,120]
[355654226,1741439442301,-15256.88087836,0.0004934,120]
[355654227,1741439442311,-15256.88087836,0.0004934,120]
[355654228,1741439442321,-15256.88087836,0.0004934,120]
[355654229,1741439442331,-15256.88087836,0.0004934,120]
[355654230,1741439442340,-1000.0,0.0004934,21]
[355654231,1741439442349,-11123.72402163,0.0004935,2]
[355654232,1741439442359,-1000.0,0.0004936,21]
[355654233,1741439442369,-2729.2460839,0.0004937,30]
[355654234,1741439442379,-800.0,0.0004937,30]
[355654235,1741439442388,-1000.0,0.00049372,120]
[355654236,1741439442398,-501.80293609,0.00049373,10]
[355654237,1741439442408,-500.0,0.00049373,10]
[355654238,1741439442417,-473.0406,0.00049373,10]
[355654239,1741439442427,-150.0,0.00049373,10]
[355654240,1741439442436,-150.0,0.00049373,3]
[355654241,1741439442446,-390.85946728,0.00049378,30]
[355654242,1741439442455,-1000.0,0.0004938,21]
[355654243,1741439442464,-800.0,0.00049382,30]
[355654244,1741439442474,-800.0,0.0004939,30]
[355654245,1741439442483,-800.0,0.0004939,30]
[355654246,1741439442495,-1000.0,0.000494,21]
[355654247,1741439442505,-500.0,0.000494,115]
[355654248,1741439442514,-500.0,0.00049413,95]
[355654249,1741439442524,-1000.0,0.0004942,21]
[355654250,1741439442533,-1000.0,0.00049424,120]
[355654251,1741439442543,-1000.0,0.00049424,120]
[355654252,1741439442552,-1000.0,0.00049424,120]
[355654253,1741439442562,-1000.0,0.00049424,120]
[355654254,1741439442573,-1000.0,0.00049424,120]
[355654255,1741439442582,-1000.0,0.00049424,120]
[355654256,1741439442591,-1000.0,0.00049424,120]
[355654257,1741439442601,-1000.0,0.00049424,120]
[355654258,1741439442610,-1000.0,0.00049424,120]
[355654259,1741439442619,-1000.0,0.00049424,120]
[355654260,1741439442629,-1000.0,0.00049424,120]
[355654261,1741439442638,-1000.0,0.00049424,120]
[355654262,1741439442648,-538.58415534,0.00049424,120]
[355654263,1741439442657,-2000.0,0.0004943,49]
[355654264,1741439442667,-500.0,0.0004944,15]
[355654265,1741439442675,-1000.0,0.0004944,21]
[355654266,1741439442684,-152545.60113508,0.0004945,120]
[355654280,1741439443875,-398.0,0.00048703,2]
[355654281,1741439443885,-4216.99834901,0.00049,15]
[355654282,1741439443895,-500.0,0.00049315,120]
[355654283,1741439443905,-500.0,0.00049315,120]
[355654284,1741439443915,-2992.85482963,0.0004945,120]
[355654408,1741440331142,-162.860417,0.0003589,2]
[355654409,1741440331164,-132.60907396,0.00038417,2]
[355654412,1741440356083,-403.87978993,0.00038417,2]
[355654427,1741440427290,-187.76133822,0.0003834,2]
[355654428,1741440427312,-17.18037025,0.00038417,2]
[355654429,1741440430121,-1909.45132259,0.00038417,2]
[355654430,1741440433079,-1014.31612057,0.00038417,2]
[355654431,1741440433101,-192.29142066,0.000388,113]
[355654432,1741440433123,-400.0,0.00038899,5]
[355654433,1741440433149,-92.11238566,0.000389,8]
[355654434,1741440438098,-1292.29945507,0.000389,8]
[355654435,1741440445148,-129.54446815,0.000389,8]
[355654436,1741440445171,-1693.64974055,0.00040847,2]
[355654437,1741440445192,-200.0,0.00040947,2]
[355654438,1741440445214,-560.0,0.0004154,5]
[355654439,1741440445239,-162.860417,0.00042209,2]
[355654440,1741440445260,-600.0,0.00043378,2]
[355654441,1741440445281,-155.13,0.00043394,2]
[355654442,1741440445302,-4368.41290349,0.00043404,2]
[355654479,1741440527051,14650.36871489,0.00015,2]
[355654480,1741440548099,-500.0,0.0004,2]
[355654481,1741440548122,-730.63240872,0.00042852,2]
[355654482,1741440548151,-550.0,0.00042999,5]
[355654483,1741440548185,-45943.81399571,0.00043,7]
[355654484,1741440548215,-20531.58709651,0.00043404,2]
[355654485,1741440548247,-155.13,0.00043592,2]
[355654486,1741440548280,-309.443957,0.00043602,2]
[355654487,1741440548308,-152.32875,0.00043642,120]
[355654488,1741440548338,-622.2,0.00043926,2]